fUST/lending_fUST_20250720
["ID","MTS","AMOUNT","RATE_DAILY","PERIOD"]
[373506276,1753025438988,-460.0,0.00016712,2]
[373506277,1753025439001,-460.0,0.00016712,2]
[373506278,1753025439011,-460.0,0.00016712,2]
[373506279,1753025439020,-460.0,0.00016712,2]
[373506280,1753025439029,-216.14389998,0.00016712,2]
[373506281,1753025439039,-460.0,0.00016712,2]
[373506282,1753025439048,-460.0,0.00016712,2]
[373506283,1753025439058,-460.0,0.00016712,2]
[373506284,1753025439068,-4085.85,0.00016712,2]
[373506285,1753025439078,-460.0,0.00016712,2]
[373506286,1753025439089,-460.0,0.00016712,2]
[373506287,1753025439098,-460.0,0.00016712,2]
[373506288,1753025439108,-460.0,0.00016712,2]
[373506289,1753025439118,-460.0,0.00016712,2]
[373506290,1753025439317,-460.0,0.00016712,2]
[373506291,1753025439327,-460.0,0.00016712,2]
[373506292,1753025439337,-460.0,0.00016712,2]
[373506293,1753025439347,-460.0,0.00016712,2]
[373506294,1753025439356,-460.0,0.00016712,2]
[373506295,1753025439365,-460.0,0.00016712,2]
[373506296,1753025439375,-460.0,0.00016712,2]
[373506297,1753025439385,-460.0,0.00016712,2]
[373506298,1753025439394,-493.45,0.00016712,2]
[373506299,1753025439403,-460.0,0.00016712,2]
[373506300,1753025439413,-460.0,0.00016712,2]
[373506301,1753025439423,-1269.89,0.00016712,2]
[373506302,1753025439432,-460.0,0.00016712,2]
[373506303,1753025439442,-460.0,0.00016712,2]
[373506304,1753025439451,-259.94101354,0.00016712,2]
[373506305,1753025439462,-460.0,0.00016712,2]
[373506306,1753025439471,-460.0,0.00016712,2]
[373506307,1753025439481,-276.44094624,0.00016712,2]
[373506308,1753025439491,-460.0,0.00016712,2]
[373506309,1753025439501,-460.0,0.00016712,2]
[373506310,1753025439515,-460.0,0.00016712,2]
[373506311,1753025439525,-460.0,0.00016712,2]
[373506312,1753025439534,-1912.19,0.00016712,2]
[373506313,1753025439544,-460.0,0.00016712,2]
[373506314,1753025439554,-460.0,0.00016712,2]
[373506315,1753025439565,-460.0,0.00016712,2]
[373506316,1753025439574,-3859.41,0.00016712,2]
[373506317,1753025439584,-460.0,0.00016712,2]
[373506318,1753025439593,-522.0,0.00016712,2]
[373506319,1753025439605,-460.0,0.00016712,2]
[373506320,1753025439615,-460.0,0.00016712,2]
[373506321,1753025439624,-460.0,0.00016712,2]
[373506322,1753025439633,-460.0,0.00016712,2]
[373506323,1753025439643,-2596.63,0.00016712,2]
[373506324,1753025439653,-460.0,0.00016712,2]
[373506325,1753025439663,-460.0,0.00016712,2]
[373506326,1753025439674,-460.0,0.00016712,2]
[373506327,1753025439683,-478.28,0.00016712,2]
[373506328,1753025439693,-460.0,0.00016712,2]
[373506329,1753025439703,-460.0,0.00016712,2]
[373506330,1753025439712,-460.0,0.00016712,2]
[373506331,1753025439722,-631.86,0.00016712,2]
[373506332,1753025439732,-460.0,0.00016712,2]
[373506333,1753025439744,-686.66,0.00016712,2]
[373506334,1753025439755,-460.0,0.00016712,2]
[373506335,1753025439764,-460.0,0.00016712,2]
[373506336,1753025439774,-460.0,0.00016712,2]
[373506337,1753025439786,-460.0,0.00016712,2]
[373506338,1753025439796,-460.0,0.00016712,2]
[373506339,1753025439806,-460.0,0.00016712,2]
[373506340,1753025439817,-1111.24,0.00016712,2]
[373506341,1753025439828,-460.0,0.00016712,2]
[373506342,1753025439838,-460.0,0.00016712,2]
[373506343,1753025439847,-460.0,0.00016712,2]
[373506344,1753025439857,-763.27,0.00016712,2]
[373506345,1753025439867,-460.0,0.00016712,2]
[373506346,1753025439878,-460.0,0.00016712,2]
[373506347,1753025439888,-460.0,0.00016712,2]
[373506348,1753025439898,-460.0,0.00016712,2]
[373506349,1753025439908,-460.0,0.00016712,2]
[373506350,1753025439918,-2311.99,0.00016712,2]
[373506351,1753025439928,-460.0,0.00016712,2]
[373506352,1753025439938,-460.0,0.00016712,2]
[373506353,1753025439948,-460.0,0.00016712,2]
[373506354,1753025439957,-1245.47,0.00016712,2]
[373506355,1753025439970,-460.0,0.00016712,2]
[373506356,1753025439982,-460.0,0.00016712,2]
[373506357,1753025439995,-460.0,0.00016712,2]
[373506358,1753025440006,-1319.81,0.00016712,2]
[373506359,1753025440015,-460.0,0.00016712,2]
[373506360,1753025440024,-460.0,0.00016712,2]
[373506361,1753025440034,-460.0,0.00016712,2]
[373506362,1753025440045,-460.0,0.00016712,2]
[373506363,1753025440054,-460.0,0.00016712,2]
[373506364,1753025440065,-572.91,0.00016712,2]
[373506365,1753025440075,-460.0,0.00016712,2]
[373506366,1753025440086,-460.0,0.00016712,2]
[373506367,1753025440095,-460.0,0.00016712,2]
[373506368,1753025440105,-460.0,0.00016712,2]
[373506369,1753025440115,-460.0,0.00016712,2]
[373506370,1753025440124,-460.0,0.00016712,2]
[373506371,1753025440134,-460.0,0.00016712,2]
[373506372,1753025440143,-460.0,0.00016712,2]
[373506373,1753025440153,-476.48,0.00016712,2]
[373506374,1753025440163,-1581.71,0.00016712,2]
[373506375,1753025440173,-460.0,0.00016712,2]
[373506376,1753025440182,-460.0,0.00016712,2]
[373506377,1753025440192,-542.25,0.00016712,2]
[373506378,1753025440202,-569.62,0.00016712,2]
[373506379,1753025440211,-1209.64,0.00016712,2]
[373506380,1753025440220,-460.0,0.00016712,2]
[373506381,1753025440230,-1646.59,0.00016712,2]
[373506382,1753025440239,-460.0,0.00016712,2]
[373506383,1753025440249,-460.0,0.00016712,2]
[373506384,1753025440258,-551.12374741,0.00016712,2]
[373506385,1753025440268,-460.0,0.00016712,2]
[373506386,1753025440277,-460.0,0.00016712,2]
[373506387,1753025440287,-460.0,0.00016712,2]
[373506388,1753025440296,-460.0,0.00016712,2]
[373506389,1753025440306,-2287.84,0.00016712,2]
[373506390,1753025440315,-1003.83,0.00016712,2]
[373506391,1753025440325,-1230.53,0.00016712,2]
[373506392,1753025440334,-158.11665188,0.00016773,2]
[373506393,1753025440343,-500.0,0.00016773,2]
[373506394,1753025440353,-162.01633466,0.00016773,2]
[373506395,1753025440362,-180.12513582,0.00016773,2]
[373506396,1753025440372,-5648.89451012,0.000169,2]
[373506398,1753025440381,-5210.35977362,0.00016964,2]
[373506399,1753025440391,-433.70689377,0.00016986,2]
[373506401,1753025440401,-460.0,0.00016986,2]
[373506402,1753025440410,-460.0,0.00016986,2]
[373506403,1753025440419,-460.0,0.00016986,2]
[373506404,1753025440431,-460.0,0.00016986,2]
[373506405,1753025440440,-460.0,0.00016986,2]
[373506406,1753025440450,-460.0,0.00016986,2]
[373506407,1753025440459,-460.0,0.00016986,2]
[373506408,1753025440469,-460.0,0.00016986,2]
[373506409,1753025440478,-460.0,0.00016986,2]
[373506410,1753025440488,-460.0,0.00016986,2]
[373506411,1753025440498,-460.0,0.00016986,2]
[373506412,1753025440508,-460.0,0.00016986,2]
[373506413,1753025440518,-460.0,0.00016986,2]
[373506414,1753025440528,-460.0,0.00016986,2]
[373506415,1753025440537,-215.76883166,0.00016986,2]
[373506416,1753025440547,-4085.85,0.00016986,2]
[373506417,1753025440556,-460.0,0.00016986,2]
[373506418,1753025440566,-460.0,0.00016986,2]
[373506419,1753025440575,-460.0,0.00016986,2]
[373506420,1753025440585,-460.0,0.00016986,2]
[373506421,1753025440596,-460.0,0.00016986,2]
[373506422,1753025440605,-460.0,0.00016986,2]
[373506423,1753025440615,-460.0,0.00016986,2]
[373506424,1753025440625,-460.0,0.00016986,2]
[373506425,1753025440634,-460.0,0.00016986,2]
[373506426,1753025440644,-460.0,0.00016986,2]
[373506427,1753025440654,-460.0,0.00016986,2]
[373506428,1753025440664,-460.0,0.00016986,2]
[373506429,1753025440675,-493.45,0.00016986,2]
[373506430,1753025440685,-514.1,0.00016986,2]
[373506431,1753025440695,-460.0,0.00016986,2]
[373506432,1753025440705,-1269.89,0.00016986,2]
[373506433,1753025440714,-460.0,0.00016986,2]
[373506434,1753025440723,-460.0,0.00016986,2]
[373506435,1753025440733,-460.0,0.00016986,2]
[373506436,1753025440743,-433.31,0.00016986,2]
[373506437,1753025440752,-460.0,0.00016986,2]
[373506438,1753025440762,-460.0,0.00016986,2]
[373506439,1753025440771,-460.0,0.00016986,2]
[373506440,1753025440780,-1912.19,0.00016986,2]
[373506441,1753025440790,-460.0,0.00016986,2]
[373506442,1753025440799,-460.0,0.00016986,2]
[373506443,1753025440809,-460.0,0.00016986,2]
[373506444,1753025440818,-460.0,0.00016986,2]
[373506445,1753025440827,-3859.41,0.00016986,2]
[373506446,1753025440836,-522.0,0.00016986,2]
[373506447,1753025440845,-460.0,0.00016986,2]
[373506448,1753025440855,-460.0,0.00016986,2]
[373506449,1753025440864,-303.43,0.00016986,2]
[373506450,1753025440873,-2596.63,0.00016986,2]
[373506451,1753025440893,-460.0,0.00016986,2]
[373506452,1753025440903,-460.0,0.00016986,2]
[373506453,1753025440913,-460.0,0.00016986,2]
[373506454,1753025440923,-478.28,0.00016986,2]
[373506455,1753025440933,-460.0,0.00016986,2]
[373506456,1753025440942,-460.0,0.00016986,2]
[373506457,1753025440952,-537.00062229,0.00016986,2]
[373506458,1753025440962,-631.86,0.00016986,2]
[373506459,1753025440972,-460.0,0.00016986,2]
[373506460,1753025440982,-686.66,0.00016986,2]
[373506461,1753025440993,-460.0,0.00016986,2]
[373506462,1753025441003,-460.0,0.00016986,2]
[373506463,1753025441013,-460.0,0.00016986,2]
[373506464,1753025441023,-460.0,0.00016986,2]
[373506465,1753025441034,-460.0,0.00016986,2]
[373506466,1753025441044,-460.0,0.00016986,2]
[373506467,1753025441054,-460.0,0.00016986,2]
[373506468,1753025441064,-1111.24,0.00016986,2]
[373506469,1753025441075,-460.0,0.00016986,2]
[373506470,1753025441085,-460.0,0.00016986,2]
[373506471,1753025441095,-763.27,0.00016986,2]
[373506472,1753025441105,-460.0,0.00016986,2]
[373506473,1753025441114,-460.0,0.00016986,2]
[373506474,1753025441125,-460.0,0.00016986,2]
[373506475,1753025441134,-460.0,0.00016986,2]
[373506476,1753025441144,-460.0,0.00016986,2]
[373506477,1753025441154,-2311.99,0.00016986,2]
[373506478,1753025441164,-460.0,0.00016986,2]
[373506479,1753025441174,-460.0,0.00016986,2]
[373506480,1753025441185,-460.0,0.00016986,2]
[373506481,1753025441195,-1245.47,0.00016986,2]
[373506482,1753025441205,-460.0,0.00016986,2]
[373506483,1753025441215,-460.0,0.00016986,2]
[373506484,1753025441225,-460.0,0.00016986,2]
[373506485,1753025441235,-1319.81,0.00016986,2]
[373506486,1753025441244,-460.0,0.00016986,2]
[373506487,1753025441255,-460.0,0.00016986,2]
[373506488,1753025441265,-590.00082965,0.00016986,2]
[373506489,1753025441275,-572.91,0.00016986,2]
[373506490,1753025441285,-460.0,0.00016986,2]
[373506491,1753025441294,-460.0,0.00016986,2]
[373506492,1753025441303,-460.0,0.00016986,2]
[373506493,1753025441312,-460.0,0.00016986,2]
[373506494,1753025441322,-460.0,0.00016986,2]
[373506495,1753025441332,-460.0,0.00016986,2]
[373506496,1753025441341,-476.48,0.00016986,2]
[373506497,1753025441351,-460.0,0.00016986,2]
[373506498,1753025441360,-1581.71,0.00016986,2]
[373506499,1753025441370,-460.0,0.00016986,2]
[373506500,1753025441380,-460.0,0.00016986,2]
[373506501,1753025441390,-542.25,0.00016986,2]
[373506502,1753025441400,-569.62,0.00016986,2]
[373506503,1753025441409,-1209.64,0.00016986,2]
[373506504,1753025441419,-460.0,0.00016986,2]
[373506505,1753025441430,-1646.59,0.00016986,2]
[373506506,1753025441440,-460.0,0.00016986,2]
[373506507,1753025441450,-460.0,0.00016986,2]
[373506508,1753025441459,-460.0,0.00016986,2]
[373506509,1753025441470,-460.0,0.00016986,2]
[373506510,1753025441480,-460.0,0.00016986,2]
[373506511,1753025441489,-2287.84,0.00016986,2]
[373506512,1753025441499,-1003.83,0.00016986,2]
[373506513,1753025441508,-1230.53,0.00016986,2]
[373506514,1753025441518,-159.28,0.00017006,2]
[373506515,1753025441528,-500.0,0.00017032,2]
[373506516,1753025441538,-500.0,0.00017116,2]
[373506517,1753025441548,-500.0,0.00017116,2]
[373506518,1753025441557,-502.61157044,0.00017116,2]
[373506519,1753025441567,-500.2969328,0.00017116,2]
[373506520,1753025441577,-500.0,0.00017116,2]
[373506521,1753025441586,-500.0,0.00017116,2]
[373506522,1753025441596,-500.5531015,0.00017116,2]
[373506523,1753025441606,-500.0,0.00017116,2]
[373506524,1753025441616,-500.98373179,0.00017116,2]
[373506525,1753025441626,-500.0,0.00017116,2]
[373506526,1753025441635,-500.67785055,0.00017138,2]
[373506527,1753025441644,-500.0,0.00017138,2]
[373506528,1753025441654,-500.0,0.00017138,2]
[373506529,1753025441663,-500.0,0.00017138,2]
[373506530,1753025441674,-500.0,0.00017138,2]
[373506531,1753025441684,-500.38190345,0.00017138,2]
[373506532,1753025441693,-502.51153415,0.00017138,2]
[373506533,1753025441703,-5648.89450987,0.00017176,2]
[373506534,1753025441713,-678.33653209,0.00017229,2]
[373506535,1753025441723,-363.06528692,0.0001726,2]
[373506536,1753025441732,-460.0,0.0001726,2]
[373506537,1753025441742,-460.0,0.0001726,2]
[373506538,1753025441752,-460.0,0.0001726,2]
[373506539,1753025441762,-460.0,0.0001726,2]
[373506540,1753025441771,-460.0,0.0001726,2]
[373506542,1753025441781,-460.0,0.0001726,2]
[373506543,1753025441790,-460.0,0.0001726,2]
[373506544,1753025441800,-460.0,0.0001726,2]
[373506545,1753025441810,-460.0,0.0001726,2]
[373506546,1753025441819,-309.42311904,0.0001726,2]
[373506547,1753025441829,-4085.85,0.0001726,2]
[373506548,1753025441839,-460.0,0.0001726,2]
[373506549,1753025441849,-460.0,0.0001726,2]
[373506550,1753025441858,-460.0,0.0001726,2]
[373506551,1753025441867,-599.38,0.0001726,2]
[373506552,1753025441877,-460.0,0.0001726,2]
[373506553,1753025441887,-460.0,0.0001726,2]
[373506554,1753025441897,-460.0,0.0001726,2]
[373506555,1753025441907,-460.0,0.0001726,2]
[373506556,1753025441916,-460.0,0.0001726,2]
[373506557,1753025441927,-460.0,0.0001726,2]
[373506558,1753025441936,-369.57089789,0.0001726,2]
[373506559,1753025441946,-493.45,0.0001726,2]
[373506560,1753025441955,-460.0,0.0001726,2]
[373506561,1753025441965,-1269.89,0.0001726,2]
[373506562,1753025441975,-460.0,0.0001726,2]
[373506563,1753025441985,-460.0,0.0001726,2]
[373506564,1753025441996,-460.0,0.0001726,2]
[373506565,1753025442006,-460.0,0.0001726,2]
[373506566,1753025442015,-460.0,0.0001726,2]
[373506567,1753025442024,-1912.19,0.0001726,2]
[373506568,1753025442034,-460.0,0.0001726,2]
[373506569,1753025442045,-460.0,0.0001726,2]
[373506570,1753025442055,-460.0,0.0001726,2]
[373506571,1753025442067,-460.0,0.0001726,2]
[373506572,1753025442076,-522.0,0.0001726,2]
[373506573,1753025442086,-3859.41,0.0001726,2]
[373506574,1753025442095,-460.0,0.0001726,2]
[373506575,1753025442104,-460.0,0.0001726,2]
[373506576,1753025442113,-2596.63,0.0001726,2]
[373506577,1753025442123,-460.0,0.0001726,2]
[373506578,1753025442133,-460.0,0.0001726,2]
[373506579,1753025442143,-460.0,0.0001726,2]
[373506580,1753025442154,-478.28,0.0001726,2]
[373506581,1753025442163,-460.0,0.0001726,2]
[373506582,1753025442174,-460.0,0.0001726,2]
[373506583,1753025442183,-631.86,0.0001726,2]
[373506584,1753025442192,-460.0,0.0001726,2]
[373506585,1753025442200,-686.66,0.0001726,2]
[373506586,1753025442209,-348.75965009,0.0001726,2]
[373506587,1753025442218,-460.0,0.0001726,2]
[373506588,1753025442227,-460.0,0.0001726,2]
[373506589,1753025442236,-460.0,0.0001726,2]
[373506590,1753025442246,-460.0,0.0001726,2]
[373506591,1753025442255,-460.0,0.0001726,2]
[373506592,1753025442263,-1111.24,0.0001726,2]
[373506593,1753025442272,-460.0,0.0001726,2]
[373506594,1753025442281,-460.0,0.0001726,2]
[373506595,1753025442291,-763.27,0.0001726,2]
[373506596,1753025442300,-460.0,0.0001726,2]
[373506597,1753025442311,-460.0,0.0001726,2]
[373506598,1753025442320,-460.0,0.0001726,2]
[373506599,1753025442329,-460.0,0.0001726,2]
[373506600,1753025442337,-460.0,0.0001726,2]
[373506601,1753025442346,-2311.99,0.0001726,2]
[373506602,1753025442356,-460.0,0.0001726,2]
[373506603,1753025442365,-460.0,0.0001726,2]
[373506604,1753025442374,-1245.47,0.0001726,2]
[373506605,1753025442384,-460.0,0.0001726,2]
[373506606,1753025442392,-460.0,0.0001726,2]
[373506607,1753025442401,-460.0,0.0001726,2]
[373506608,1753025442410,-1319.81,0.0001726,2]
[373506609,1753025442420,-460.0,0.0001726,2]
[373506610,1753025442429,-460.0,0.0001726,2]
[373506611,1753025442438,-572.91,0.0001726,2]
[373506612,1753025442447,-460.0,0.0001726,2]
[373506613,1753025442455,-460.0,0.0001726,2]
[373506614,1753025442464,-460.0,0.0001726,2]
[373506615,1753025442472,-460.0,0.0001726,2]
[373506616,1753025442482,-460.0,0.0001726,2]
[373506617,1753025442490,-293.53641071,0.0001726,2]
[373506618,1753025442498,-476.48,0.0001726,2]
[373506619,1753025442507,-460.0,0.0001726,2]
[373506620,1753025442515,-1581.71,0.0001726,2]
[373506621,1753025442524,-460.0,0.0001726,2]
[373506622,1753025442533,-460.0,0.0001726,2]
[373506623,1753025442542,-542.25,0.0001726,2]
[373506624,1753025442552,-569.62,0.0001726,2]
[373506625,1753025442560,-1209.64,0.0001726,2]
[373506626,1753025442567,-460.0,0.0001726,2]
[373506627,1753025442574,-1646.59,0.0001726,2]
[373506628,1753025442582,-460.0,0.0001726,2]
[373506630,1753025442589,-460.0,0.0001726,2]
[373506631,1753025442596,-460.0,0.0001726,2]
[373506632,1753025442602,-460.0,0.0001726,2]
[373506633,1753025442609,-2287.84,0.0001726,2]
[373506634,1753025442616,-1003.83,0.0001726,2]
[373506635,1753025442622,-1230.53,0.0001726,2]
[373506636,1753025442629,-1000.0,0.00017321,2]
[373506637,1753025442636,-500.0,0.00017389,2]
[373506638,1753025442643,-5648.89450987,0.00017452,2]
[373506639,1753025442650,-460.0,0.00017534,2]
[373506640,1753025442656,-460.0,0.00017534,2]
[373506641,1753025442664,-460.0,0.00017534,2]
[373506642,1753025442670,-460.0,0.00017534,2]
[373506643,1753025442680,-460.0,0.00017534,2]
[373506644,1753025442687,-460.0,0.00017534,2]
[373506654,1753025442826,-460.0,0.00017534,2]
[373506655,1753025442834,-460.0,0.00017534,2]
[373506657,1753025442842,-460.0,0.00017534,2]
[373506659,1753025442850,-4085.85,0.00017534,2]
[373506661,1753025442857,-325.6762371,0.00017534,2]
[373506663,1753025442863,-460.0,0.00017534,2]
[373506664,1753025442870,-460.0,0.00017534,2]
[373506665,1753025442879,-460.0,0.00017534,2]
[373506666,1753025442888,-460.0,0.00017534,2]
[373506667,1753025442898,-460.0,0.00017534,2]
[373506668,1753025442907,-460.0,0.00017534,2]
[373506669,1753025442917,-460.0,0.00017534,2]
[373506670,1753025442927,-460.0,0.00017534,2]
[373506671,1753025442937,-493.45,0.00017534,2]
[373506672,1753025442947,-460.0,0.00017534,2]
[373506673,1753025442956,-1269.89,0.00017534,2]
[373506674,1753025442966,-460.0,0.00017534,2]
[373506675,1753025442975,-460.0,0.00017534,2]
[373506676,1753025442984,-460.0,0.00017534,2]
[373506677,1753025442995,-460.0,0.00017534,2]
[373506679,1753025443006,-460.0,0.00017534,2]
[373506681,1753025443015,-1912.19,0.00017534,2]
[373506683,1753025443024,-460.0,0.00017534,2]
[373506685,1753025443035,-468.82013282,0.00017534,2]
[373506687,1753025443044,-460.0,0.00017534,2]
[373506689,1753025443055,-460.0,0.00017534,2]
[373506691,1753025443065,-522.0,0.00017534,2]
[373506693,1753025443076,-3859.41,0.00017534,2]
[373506695,1753025443086,-460.0,0.00017534,2]
[373506697,1753025443095,-2596.63,0.00017534,2]
[373506699,1753025443105,-460.0,0.00017534,2]
[373506701,1753025443114,-460.0,0.00017534,2]
[373506703,1753025443124,-478.28,0.00017534,2]
[373506705,1753025443133,-460.0,0.00017534,2]
[373506707,1753025443142,-460.0,0.00017534,2]
[373506709,1753025443151,-631.86,0.00017534,2]
[373506712,1753025443161,-460.0,0.00017534,2]
[373506714,1753025443170,-686.66,0.00017534,2]
[373506716,1753025443181,-460.0,0.00017534,2]
[373506718,1753025443191,-460.0,0.00017534,2]
[373506720,1753025443200,-460.0,0.00017534,2]
[373506722,1753025443209,-460.0,0.00017534,2]
[373506724,1753025443219,-460.0,0.00017534,2]
[373506726,1753025443228,-460.0,0.00017534,2]
[373506728,1753025443238,-1111.24,0.00017534,2]
[373506730,1753025443247,-460.0,0.00017534,2]
[373506732,1753025443257,-763.27,0.00017534,2]
[373506734,1753025443266,-460.0,0.00017534,2]
[373506736,1753025443275,-460.0,0.00017534,2]
[373506738,1753025443285,-460.0,0.00017534,2]
[373506740,1753025443295,-460.0,0.00017534,2]
[373506742,1753025443304,-460.0,0.00017534,2]
[373506744,1753025443313,-2311.99,0.00017534,2]
[373506746,1753025443323,-460.0,0.00017534,2]
[373506748,1753025443332,-1245.47,0.00017534,2]
[373506750,1753025443341,-460.0,0.00017534,2]
[373506752,1753025443350,-460.0,0.00017534,2]
[373506754,1753025443359,-466.76111448,0.00017534,2]
[373506756,1753025443368,-1319.81,0.00017534,2]
[373506758,1753025443378,-460.0,0.00017534,2]
[373506760,1753025443387,-460.0,0.00017534,2]
[373506762,1753025443396,-572.91,0.00017534,2]
[373506764,1753025443405,-460.0,0.00017534,2]
[373506766,1753025443414,-460.0,0.00017534,2]
[373506768,1753025443425,-506.98997114,0.00017534,2]
[373506769,1753025443435,-460.0,0.00017534,2]
[373506771,1753025443444,-460.0,0.00017534,2]
[373506774,1753025443454,-1581.71,0.00017534,2]
[373506776,1753025443465,-460.0,0.00017534,2]
[373506778,1753025443474,-476.48,0.00017534,2]
[373506780,1753025443484,-460.0,0.00017534,2]
[373506781,1753025443494,-460.0,0.00017534,2]
[373506783,1753025443503,-542.25,0.00017534,2]
[373506785,1753025443513,-569.62,0.00017534,2]
[373506787,1753025443522,-1209.64,0.00017534,2]
[373506789,1753025443531,-460.0,0.00017534,2]
[373506791,1753025443540,-1646.59,0.00017534,2]
[373506793,1753025443549,-460.0,0.00017534,2]
[373506795,1753025443558,-370.55427041,0.00017534,2]
[373506797,1753025443568,-460.0,0.00017534,2]
[373506799,1753025443577,-460.0,0.00017534,2]
[373506801,1753025443588,-2287.84,0.00017534,2]
[373506803,1753025443597,-1003.83,0.00017534,2]
[373506805,1753025443607,-1230.53,0.00017534,2]
[373506807,1753025443617,-1000.0,0.0001758,2]
[373506809,1753025443626,-151.0,0.000176,2]
[373506812,1753025443635,-500.0,0.0001762,2]
[373506814,1753025443645,-500.0,0.0001762,2]
[373506816,1753025443654,-1170.11165865,0.00017642,2]
[373506817,1753025443663,-1000.0,0.00017664,2]
[373506820,1753025443674,-1000.0,0.00017664,2]
[373506822,1753025443683,-1023.28629004,0.00017664,2]
[373506824,1753025443692,-1000.0,0.00017664,2]
[373506826,1753025443702,-500.0,0.00017664,2]
[373506828,1753025443712,-367.91445267,0.00017686,2]
[373506830,1753025443722,-1000.0,0.00017686,2]
[373506832,1753025443731,-5648.89450987,0.00017728,2]
[373506834,1753025443740,-212.37,0.00017745,2]
[373506836,1753025443749,-1003.78,0.00017798,3]
[373506838,1753025443759,-501.9,0.00017798,3]
[373506840,1753025443769,-460.0,0.00017808,2]
[373506842,1753025443778,-460.0,0.00017808,2]
[373506844,1753025443787,-460.0,0.00017808,2]
[373506846,1753025443796,-460.0,0.00017808,2]
[373506848,1753025443805,-460.0,0.00017808,2]
[373506850,1753025443814,-460.0,0.00017808,2]
[373506852,1753025443823,-460.0,0.00017808,2]
[373506854,1753025443833,-460.0,0.00017808,2]
[373506856,1753025443843,-460.0,0.00017808,2]
[373506858,1753025443853,-4085.85,0.00017808,2]
[373506860,1753025443862,-460.0,0.00017808,2]
[373506862,1753025443872,-538.32449597,0.00017808,2]
[373506864,1753025443882,-460.0,0.00017808,2]
[373506866,1753025443891,-460.0,0.00017808,2]
[373506868,1753025443901,-460.0,0.00017808,2]
[373506870,1753025443910,-460.0,0.00017808,2]
[373506872,1753025443919,-460.0,0.00017808,2]
[373506874,1753025443929,-460.0,0.00017808,2]
[373506876,1753025443939,-493.45,0.00017808,2]
[373506878,1753025443949,-460.0,0.00017808,2]
[373506880,1753025443959,-1269.89,0.00017808,2]
[373506882,1753025443968,-460.0,0.00017808,2]
[373506884,1753025443977,-460.0,0.00017808,2]
[373506886,1753025443987,-1912.19,0.00017808,2]
[373506888,1753025443999,-460.0,0.00017808,2]
[373506890,1753025444008,-460.0,0.00017808,2]
[373506892,1753025444018,-460.0,0.00017808,2]
[373506894,1753025444027,-522.0,0.00017808,2]
[373506896,1753025444037,-3859.41,0.00017808,2]
[373506898,1753025444046,-460.0,0.00017808,2]
[373506900,1753025444056,-2596.63,0.00017808,2]
[373506902,1753025444067,-460.0,0.00017808,2]
[373506904,1753025444076,-460.0,0.00017808,2]
[373506906,1753025444085,-478.28,0.00017808,2]
[373506908,1753025444094,-460.0,0.00017808,2]